Cogmind - Beta 13 X1 @@@ ROGUE MODE // 2023.07.12 @ 19:54:18 Player: WayneKnight Result: Destroyed by as-98041 with Assembled Heavy Rifle Performance ------------- Evolutions (0) 0 Regions Visited (2) 400 Robots Destroyed (23) 115 Value Destroyed (551) 551 Prototype IDs (0) 0 Alien Tech Used (0) 0 Bonus (0) 0 TOTAL SCORE: 1066 Bonus ------- None Cogmind --------- Core Integrity 0/250 Matter 300/300 Energy 250/250 System Corruption 0% Temperature Cool (33) Movement Treading (160) Location -10/Mines Parts ------- > --- POWER (1) -------- Ion Engine > --- PROPULSION (2) --- Light Treads Light Treads > --- UTILITY (2) ------ Large Storage Unit > --- WEAPON (2) ------- Medium Laser Assault Rifle > --- INVENTORY (15) --- Light Treads Aluminum Leg Aluminum Leg Wheel Medium Storage Unit Bomb Drone Bay EM Pulse Gun Medium Laser Light Assault Rifle Light Assault Rifle Mini Grenade Launcher Datajack Makeshift Hammer Peak State ------------ > --- POWER ------------ Ion Engine > --- PROPULSION ------- Light Treads Wheel > --- UTILITY ---------- Large Storage Unit Light Armor Plating > --- WEAPON ----------- Medium Laser Assault Rifle > --- INVENTORY -------- Ion Engine Light Treads Light Treads Aluminum Leg Aluminum Leg Medium Storage Unit Weapon Shielding Bomb Drone Bay EM Pulse Gun Medium Laser Medium Laser Light Assault Rifle Light Assault Rifle Datajack [Rating: 9] Favorites ----------- Power Ion Engine Engine Ion Engine Propulsion Light Treads Treads Light Treads Leg Aluminum Leg Wheel Wheel Utility Large Storage Unit Storage Large Storage Unit Protection Light Armor Plating Weapon Medium Laser Energy Gun Medium Laser Ballistic Gun Light Assault Rifle Build | -11 -10 -10 ------- Run | Jun Mat Min Slots Evolved . | . . . Power . | . . . Propulsion . | . . . Utility . | . . . Weapon . | . . . Parts Attached 35 | 4 24 7 Power 2 | . 1 1 Engine 2 | . 1 1 Core . | . . . Reactor . | . . . Propulsion 24 | 2 18 4 Treads 13 | 1 10 2 Leg . | . . . Wheel 11 | 1 8 2 Hover . | . . . Flight . | . . . Utility 5 | 1 3 1 Device . | . . . Storage 3 | 1 2 . Processor . | . . . Hackware . | . . . Protection 2 | . 1 1 Artifact . | . . . Weapon 4 | 1 2 1 Energy Gun 3 | 1 1 1 Energy Cannon . | . . . Ballistic Gun 1 | . 1 . Ballistic Cannon . | . . . Launcher . | . . . Special Weapon . | . . . Impact Weapon . | . . . Slashing Weapon . | . . . Piercing Weapon . | . . . Special Melee Weapon . | . . . Unidentified Prototypes . | . . . Parts Lost 4 | . . 4 Power 1 | . . 1 Propulsion . | . . . Utility 2 | . . 2 Weapon 1 | . . 1 Highest Loss Streak 2 | . . 2 To Critical Strikes . | . . . Average Slot Usage (%) 98 | . 100 93 Engine 14 | . 14 14 Treads 19 | . 18 22 Wheel 8 | . 9 5 Storage 17 | . 18 14 Protection 9 | . 9 8 Energy Gun 14 | . 14 14 Ballistic Gun 14 | . 14 14 Naked Turns . | . . . Heaviest Build 32 | 18 32 32 Greatest Support 40 | 10 40 40 Greatest Overweight (x) 3 | 1 3 3 Average Overweight (x) 2 | 1 2 1 Largest Inventory Capacity 15 | 8 15 15 Average Capacity 12 | 8 11 15 Most Carried 15 | 6 14 15 Average Carried 10 | 5 9 13 Final Capacity 15 | 8 15 15 Final Carried 14 | 5 13 14 Class Distribution -------------------- 100% | Mutant Dominant Class ---------------- Mutant | -10/Materials Mutant | -10/Mines Resources | -11 -10 -10 ----------- Run | Jun Mat Min Matter Collected 685 | 242 265 178 Remotely . | . . . Salvage Created 828 | 66 464 298 Parts 49 | 2 36 11 Haulers Intercepted 1 | . 1 . Recyclers Shooed 1 | 1 . . Parts Field Recycled . | . . . Retrieved Matter . | . . . Parts Self-Destructed . | . . . Prevented . | . . . Kills | -11 -10 -10 ------- Run | Jun Mat Min Combat Hostiles Destroyed 18 | . 9 9 Guns 18 | . 9 9 Classes Destroyed 8 | 1 5 2 Hauler 1 | . 1 . Recycler 3 | 1 . 2 Operator 1 | . 1 . Watcher 3 | . 3 . Swarmer 5 | . 2 3 Grunt 8 | . 7 1 Demolisher 2 | . . 2 Assembled 3 | . . 3 Best Kill Streak 4 | 1 2 4 Combat Bots Only 4 | . 2 4 Max Kills in Single Turn 2 | 1 1 2 Gunslinging 1 | . . 1 Exploded . | . . . Melee . | . . . Uniques/NPCs Destroyed . | . . . Combat | -11 -10 -10 -------- Run | Jun Mat Min Damage Taken 1100 | . 285 815 Core 256 | . 27 229 Absorbed by Shields . | . . . Redirected to Shielding 50 | . . 50 Regen/Repaired (Parts) 61 | . 61 . Core Remaining (%) 100 | 100 . . Volleys Fired 83 | 2 45 36 Largest 2 | 2 2 2 Hottest 70 | 70 70 70 Shots Fired 163 | 4 87 72 Gun 163 | 4 87 72 Cannon . | . . . Launcher . | . . . Special . | . . . Kinetic 83 | 2 45 36 Thermal 80 | 2 42 36 Explosive . | . . . Electromagnetic . | . . . Robot Hit Streak 18 | 3 18 7 Robot Miss Streak 4 | . 4 2 Penetration Max . | . . . Secondary Targets 2 | . . 2 Max Gunslinging Chain 1 | . . 1 Shots Hit Robots 111 | 3 58 50 Core Hits 49 | 2 28 19 Critical Kills . | . . . Critical Parts Destroyed . | . . . Critical Strikes 4 | . 2 2 Burn 4 | . 2 2 Melee Attacks . | . . . Impact . | . . . Slashing . | . . . Piercing . | . . . Sneak Attacks . | . . . Combat Hostiles . | . . . Follow-up Attacks . | . . . Damage Inflicted 1305 | 30 625 650 Guns 1305 | 30 625 650 Cannons . | . . . Explosions . | . . . Melee . | . . . Ramming . | . . . Kinetic 553 | 17 203 333 Thermal 752 | 13 422 317 Explosive . | . . . Electromagnetic . | . . . Impact . | . . . Slashing . | . . . Piercing . | . . . Highest Corruption . | . . . Average Corruption . | . . . Corruption Purged . | . . . Corruption Blocked . | . . . Overload Shots . | . . . Overflow Damage . | . . . Projectiles . | . . . Explosions . | . . . Melee . | . . . Knockbacks . | . . . Impact . | . . . Kinetic . | . . . Secondary . | . . . Self-Inflicted Damage . | . . . Shots . | . . . Rammed . | . . . Targets Rammed . | . . . Kicked . | . . . Crushed . | . . . Highest Temperature 183 | 40 183 169 Average Temperature 47 | 23 50 43 Received Heat Transfer 291 | . 156 135 Siege Activations . | . . . Robots Corrupted . | . . . Combat Hostiles . | . . . Parts Fried . | . . . Impact Corruptions . | . . . Robots Melted . | . . . Combat Hostiles . | . . . Parts Melted 7 | . 6 1 Heat Transferred 2479 | 37 1369 1073 Parts Sabotaged . | . . . Parts Stolen . | . . . Parts Stripped . | . . . Power Chain Reactions . | . . . Missiles Intercepted . | . . . Alert | -11 -10 -10 ------- Run | Jun Mat Min Peak Influence 135 | 5 135 120 Initial 3 | . 3 3 Average 41 | 2 41 41 Maximum Alert Level . | . . . Low Security (%) 100 | 100 100 100 Level 1 . | . . . Level 2 . | . . . Level 3 . | . . . Level 4 . | . . . Level 5 . | . . . High Security . | . . . Max Security . | . . . Squads Dispatched 2 | . 2 . Investigation . | . . . Extermination . | . . . Reinforcement 2 | . 2 . Assault . | . . . Garrison . | . . . Intercept . | . . . Searches Triggered . | . . . Construction Impeded . | . . . Haulers Reinforced . | . . . Active Scanning Responses . | . . . Cargo Convoy Interrupts . | . . . Stealth | -11 -10 -10 --------- Run | Jun Mat Min Distress Signals . | . . . Communications Jammed . | . . . Distress Signals . | . . . Times Spotted 49 | . 23 26 Peak Tracking Total 15 | . 5 15 Tactical Retreats 3 | . 2 1 Traps | -11 -10 -10 ------- Run | Jun Mat Min Traps Triggered . | . . . Indirectly . | . . . Trap Hack Attempts . | . . . Triggered . | . . . Disarmed . | . . . Reprogrammed . | . . . Reused . | . . . Traps Extracted . | . . . Installed . | . . . Triggered . | . . . Machines | -11 -10 -10 ---------- Run | Jun Mat Min Machines Disabled . | . . . Max in Single Turn . | . . . Machines Repaired . | . . . Machines Sabotaged . | . . . Overloaded Fab Kills . | . . . Hacking | -11 -10 -10 --------- Run | Jun Mat Min Machines Accessed 9 | . 8 1 Terminals 5 | . 5 . Fabricators . | . . . Repair Stations 1 | . 1 . Recycling Units 2 | . 2 . Scanalyzers . | . . . Garrison Access . | . . . Total Hacks 26 | . 25 1 Successful 12 | . 11 1 Failed 13 | . 13 . Catastrophic . | . . . Database Lockouts 1 | . 1 . Manual 11 | . 11 . Terminals 20 | . 20 . Fabricators . | . . . Repair Stations 2 | . 2 . Recycling Units 3 | . 3 . Scanalyzers . | . . . Garrison Access . | . . . Terminal Hacks 6 | . 5 1 Part Schematic 1 | . 1 . Robot Analysis 2 | . 2 . Open Door 1 | . . 1 Locate Traps 2 | . 2 . Fabricator Hacks . | . . . Repair Station Hacks 2 | . 2 . Scan Component 1 | . 1 . Repair 1 | . 1 . Recycling Unit Hacks 2 | . 2 . Report Inventory 2 | . 2 . Scanalyzer . | . . . Garrison Access Hacks . | . . . Unauthorized Hacks 2 | . 2 . Terminals 2 | . 2 . Botnet 2 | . 2 . Fabricators . | . . . Repair Stations . | . . . Recycling Units . | . . . Scanalyzers . | . . . Garrison Access . | . . . Data Cores Recovered 1 | . 1 . Used . | . . . Hacking Detections 8 | . 8 . Full Trace Events . | . . . Feedback Events . | . . . Feedback Blocked . | . . . Robot Schematics Acquired . | . . . Robots Built . | . . . Authchips . | . . . Time . | . . . Total Robot Build Rating . | . . . Part Schematics Acquired 1 | . 1 . Parts Built . | . . . Authchips . | . . . Time . | . . . Total Part Build Rating . | . . . Parts Repaired 1 | . 1 . Time 26 | . 26 . Parts Recycled . | . . . Recycled Matter . | . . . Retrieved Matter . | . . . Retrieved Components . | . . . Parts Scanalyzed . | . . . Part Schematics Acquired . | . . . Parts Damaged . | . . . Bothacking | -11 -10 -10 ------------ Run | Jun Mat Min Used RIF Installer . | . . . Robots Hacked . | . . . Non-combat . | . . . Combat . | . . . Robot Hacks Applied . | . . . Relay Couplers Released . | . . . Fabnet Peak Effective % . | . . . Robots Rewired . | . . . Allies Hacked . | . . . Hacks Repelled . | . . . Allies | -11 -10 -10 -------- Run | Jun Mat Min Total Allies . | . . . Largest Group . | . . . Highest-Rated Group . | . . . Highest-Rated Ally . | . . . Total Orders . | . . . Ally Attacks . | . . . Total Damage . | . . . Kills . | . . . Allies Corrupted . | . . . Allies Melted . | . . . Intel | -11 -10 -10 ------- Run | Jun Mat Min Robot Analysis Total 2 | . 2 . Derelict Logs Recovered 2 | . . 2 Drone Launches . | . . . Drone Recoveries . | . . . Exploration | -11 -10 -10 ------------- Run | Jun Mat Min Turns Passed 3176 | 27 2381 768 Spaces Moved 1089 | 11 714 364 Core . | . . . Treads 168 | . 32 136 Legs . | . . . Wheels 921 | 11 682 228 Hover . | . . . Flight . | . . . Fastest Speed 95 | 95 95 110 Average Speed 128 | 95 119 147 Slowest Speed 240 | 95 160 240 Overloaded Moves . | . . . Propulsion Burnouts . | . . . Robots Hopped . | . . . Cave-ins Triggered . | . . . Exploration Rate (%) 52 | 2 98 58 Regions Visited 2 Branch Regions 1 Pre-discovered Areas . | . . . Known Exits Taken . | . . . Unknown Exits Taken 2 | 1 1 . Scrap Searched . | . . . Spaces Dug . | . . . Terrain Destroyed . | . . . Melee . | . . . Projectile . | . . . AOE . | . . . Terrain Rammed . | . . . Walls Destroyed . | . . . Machines Disabled . | . . . Actions | -11 -10 -10 --------- Run | Jun Mat Min Total 2702 | 22 2158 522 Wait 1476 | 4 1360 112 Move 1087 | 10 713 364 Hop . | . . . Pick Up 14 | 1 10 3 Fast Attach 1 | . 1 . Attach 4 | 1 . 3 Detach . | . . . Swap 30 | 3 23 4 Drop 7 | 1 6 . Fire 83 | 2 45 36 Melee . | . . . Ram . | . . . Kick . | . . . Crush . | . . . Escape Stasis . | . . . Rewire . | . . . Trap . | . . . Miscellaneous . | . . . Route ------- -11/Junkyard -10/Materials (discovered 4 exits: *Mat x2 / *Min x2) -10/Mines (discovered 2 exits: *Mat x2) History --------- Turn | Location | Event 16 | -11/Junkyard | Discovered new exit (range 3) 28 | -11/Junkyard | Entered Materials 309 | -10/Materials | Build established: Mutant 1229 | -10/Materials | Discovered new exit (range 13) 1369 | -10/Materials | Discovered new exit (range 16) 1508 | -10/Materials | Repaired Lgt. Treads 1567 | -10/Materials | Discovered new exit (range 12) 2236 | -10/Materials | Central database locked down 2298 | -10/Materials | Discovered new exit (range 7) 2409 | -10/Materials | Entered Mines 2431 | -10/Mines | Met a Derelict bent on vengeance 2436 | -10/Mines | Identified exit to Materials 2526 | -10/Mines | Found the Drone Emporium 2532 | -10/Mines | Found Prototype Device 2782 | -10/Mines | Learned Materials stockpile data 2795 | -10/Mines | A weapon hastily lodged in a ceiling crevice suddenly fell to the ground 2807 | -10/Mines | Assembled infested the area 2812 | -10/Mines | Assisted by a Guerilla fighting off Assembled 2829 | -10/Mines | Core integrity fell below 50% 2856 | -10/Mines | Core integrity fell below 20% 2969 | -10/Mines | Discovered exit to Materials (range 15) 3177 | -10/Mines | Destroyed by as-98041 with Assembled Heavy Rifle Last Messages --------------- 02919_ K-01 Serf collects debris. 02927_ U-05 Engineer builds a Wall. 02927_ as-78519 destroyed. 02929_ K-01 Serf collects debris. 02929_ R-06 Scavenger collects Aluminum Leg. 02932_ K-01 Serf collects debris. 02932_ R-06 Scavenger collects Sml. Storage Unit. 02936_ K-01 Serf collects debris. 02940_ U-05 Engineer lays Concrete. 02941_ U-05 Engineer builds a Wall. 02943_ K-01 Serf collects debris. 02947_ Acquired 70 matter. 02966_ K-01 Serf collects debris. 02969_ EXIT=FOUND: MATERIALS 02977_ K-01 Serf collects debris. 03041_ S-10 Pest destroyed. 03044_ Switching to secondary target: S-10 Pest. 03044_ S-10 Pest destroyed. 03047_ Acquired 9 matter. 03167_ Acquired 3 matter. Map ----- +----------------------------------------------------+ | ####### < ###### #??# #???? | | ##????# ##????## #### #???? | | #?????# #??????# ## #???? | | # #?????## ##??????# ### ##???? | | # #??????###????????# ###?# #????? | | # ##?????????????????# ###### ##???? | | ## #??????????????????# #?# #???? | | ?## #?????????????????# #?# """ #???? | | ??## #?????????????????# #?# """ #???? | | ???####???????????####### #?# """ #???? | | ??????????????????# #?# #???? | | ??????????????????# #?# < #???? | | ???????????????#### #######?# #???? | | ???????????????# ! #####???# #???? | | ??????????????## % ##??# #???? | | ?????????????## ! ##?# #???? | | ????????####### ==% #?### ###???? | | ? ## # #???# #?????? | | ??????######### =!#### ##?### #?????? | | ????????##### # %## # ###?## #?????? | | ????????# ##### # ##??## u ###???? | | ????????# !%| ## ## #??# #???? | | ???????# ###* ## # ##?## #???? | | ??????# # ###== ### """ #???? | | ?????# # ## # #%!= ##u """ ##??? | | ????? # ## # %#|! a@ """ #??? | | ????# # ###### k ### #??? | | ??? # ### ## ##?##### ##??? | | ??? # #### #########??????####???? | | ???# # #???###?????????????????????? | | ???? #????????????????????????????? | | ????# ### #?????????????????????????????? | | ????#???##??????????????????????????????? | | ????????????????????????????????????????? | | ????????????????????????????????????????? | | ????????????????????????????????????????? | | ????????????????????????????????????????? | | ????????????????????????????????????????? | | ????????????????????????????????????????? | | ????????????????????????????????????????? | | ????????????????????????????????????????? | | ????????????????????????????????????????? | | ????????????????????????????????????????? | | | | | | | | | | | | | | | +----------------------------------------------------+ Best States ------------- Heat Dissipation 25 Energy Generation 10 Energy Capacity 250 Matter Stores 300 Matter Capacity 300 Sight Range 16 Terrain Scan Density 10 Armor Coverage 150 Weapon Shielding 33 Evasion (%) 41 Recoil Reduction 2 Item Schematics ----------------- Lrg. Storage Unit | -10/Materials | Hacked Robot Schematics ------------------ None Fabricated ------------ Nothing Alien Tech Used ----------------- None Achievements -------------- None Challenges ------------ None Game ------ Seed ThermicScrapScanner Manual? 0 Play Time 00:17:21 Cumulative 53.2 hours Start 2023.07.11 @ 22:19:34 End 2023.07.12 @ 19:54:18 Sessions 1 Manual Loads 0 Difficulty Rogue Special Mode None Game No. 48 Rogue 48 Adventurer 0 Explorer 0 Win Type - Total 1 Types 0/0/1/0/0/0/0/0/0 Lore% 33 Gallery% 36 Achievement% 52 Wizard Run 0 Options --------- ASCII 1 Keyboard 1 Movement Arrows Keybinds 0 Fullscreen 2 Font 24/Proggy Map View 76x50 Tactical HUD 1 Map Filters NONE Filters NONE Steam 1 RUN: 27e26335-de1f-4e00-a668-7d8f65fd9ea1